Cogmind - Beta 10.2 @@@ ROGUE MODE // 2021.10.28 @ 18:28:28 Player: Kom Result: Destroyed by Y-54 Guardian with Gatling Laser Performance ------------- Evolutions (4) 2000 Regions Visited (7) 1400 Robots Destroyed (1) 5 Value Destroyed (27) 27 Prototype IDs (3) 60 Alien Tech Used (0) 0 Bonus (1325) 1325 TOTAL SCORE: 4817 Bonus ------- Pacifist 1325 Cogmind --------- Core Integrity 0/850 Matter 119/300 Energy 100/100 System Corruption 0% Temperature Cool (12) Movement Core (50) Location -6/Lower Caves Parts ------- > --- POWER (5) -------- (None) > --- PROPULSION (6) --- (None) > --- UTILITY (2) ------ Terrain Scan Processor > --- WEAPON (2) ------- (None) > --- INVENTORY (4) ---- Light Deuterium Engine Force Field Component Analysis Suite Ion Cannon Peak State ------------ > --- POWER ------------ Nuclear Core > --- PROPULSION ------- Improved Gravmag System Gravmag Array Gravmag Array > --- UTILITY ---------- Terrain Scan Processor Advanced Targeting Computer > --- WEAPON ----------- Shock Rifle Flak Gun > --- INVENTORY -------- Light Deuterium Engine Force Field Component Analysis Suite Ion Cannon [Rating: 41] Favorites ----------- Power Nuclear Core Engine Cooled Deuterium Engine Power Core Nuclear Core Propulsion VTOL Module Hover Unit Gravmag Array Flight Unit VTOL Module Utility Terrain Scan Processor Processor Terrain Scan Processor Weapon Flak Gun Energy Gun Shock Rifle Energy Cannon Particle Cannon Ballistic Gun Flak Gun Build | -11 -10 -9 -9 -8 -7 -6 -6 ------- Run | Scr Mat Mat Min Mat Fac Fac Low Slots Evolved 8 | . . 2 . 2 2 2 . Power 4 | . . 1 . 1 1 1 . Propulsion 4 | . . 1 . 1 1 1 . Utility . | . . . . . . . . Weapon . | . . . . . . . . Parts Attached 15 | . . . . . 9 6 . Power 2 | . . . . . 1 1 . Engine 1 | . . . . . 1 . . Core 1 | . . . . . . 1 . Reactor . | . . . . . . . . Propulsion 8 | . . . . . 4 4 . Treads . | . . . . . . . . Leg . | . . . . . . . . Wheel . | . . . . . . . . Hover 3 | . . . . . . 3 . Flight 5 | . . . . . 4 1 . Utility 2 | . . . . . 2 . . Device . | . . . . . . . . Storage . | . . . . . . . . Processor 2 | . . . . . 2 . . Hackware . | . . . . . . . . Protection . | . . . . . . . . Artifact . | . . . . . . . . Weapon 3 | . . . . . 2 1 . Energy Gun 1 | . . . . . . 1 . Energy Cannon 1 | . . . . . 1 . . Ballistic Gun 1 | . . . . . 1 . . Ballistic Cannon . | . . . . . . . . Launcher . | . . . . . . . . Special Weapon . | . . . . . . . . Impact Weapon . | . . . . . . . . Slashing Weapon . | . . . . . . . . Piercing Weapon . | . . . . . . . . Special Melee Weapon . | . . . . . . . . Unidentified Prototypes 3 | . . . 1 . 1 1 . Parts Lost 11 | . . . 1 . 3 . 7 Power 1 | . . . . . . . 1 Propulsion 5 | . . . . . 2 . 3 Utility 2 | . . . 1 . . . 1 Weapon 3 | . . . . . 1 . 2 Highest Loss Streak 7 | . . . 1 . 3 . 7 Average Slot Usage (%) 31 | . . . . . 46 42 16 Engine 1 | . . . . . 6 . . Core 2 | . . . . . . 4 2 Hover 6 | . . . . . . 12 3 Flight 6 | . . . . . 26 1 . Processor 8 | . . . . . 7 13 8 Energy Gun 1 | . . . . . . 4 . Ballistic Gun 3 | . . . . . . 6 2 Naked Turns 218 | . 37 68 52 52 9 . . Heaviest Build 15 | . . . . . 15 14 14 Greatest Support 70 | 3 3 3 3 3 20 70 70 Greatest Overweight (x) 1 | . . . . . 1 . . Average Overweight (x) . | . . . . . . . . Largest Inventory Capacity 4 | 4 4 4 4 4 4 4 4 Average Capacity 4 | 4 4 4 4 4 4 4 4 Most Carried 4 | . 4 4 4 4 4 4 4 Average Carried 3 | . 2 4 4 4 2 3 4 Final Capacity 4 | 4 4 4 4 4 4 4 4 Final Carried 4 | . 4 4 4 4 3 4 4 Class Distribution -------------------- 84% | Mutant 15% | Sprinter Dominant Class ---------------- Mutant | -10/Materials Mutant | -9/Materials Mutant | -9/Mines Mutant | -8/Materials Sprinter | -7/Factory Mutant | -6/Factory Mutant | -6/Lower Caves Resources | -11 -10 -9 -9 -8 -7 -6 -6 ----------- Run | Scr Mat Mat Min Mat Fac Fac Low Matter Collected 125 | 84 . . 20 . . . 21 Remotely . | . . . . . . . . Salvage Created 21 | . . . . . . . 21 Parts 2 | . . . . . . . 2 Haulers Intercepted . | . . . . . . . . Recyclers Shooed . | . . . . . . . . Parts Field Recycled . | . . . . . . . . Retrieved Matter . | . . . . . . . . Parts Self-Destructed 2 | . . . . . . . 2 Prevented . | . . . . . . . . Kills | -11 -10 -9 -9 -8 -7 -6 -6 ------- Run | Scr Mat Mat Min Mat Fac Fac Low Combat Hostiles Destroyed 1 | . . . . . . . 1 Guns 1 | . . . . . . . 1 Classes Destroyed 1 | . . . . . . . 1 Swarmer 1 | . . . . . . . 1 Best Kill Streak 1 | . . . . . . . 1 Combat Bots Only 1 | . . . . . . . 1 Max Kills in Single Turn 1 | . . . . . . . 1 Gunslinging . | . . . . . . . . Exploded . | . . . . . . . . Melee . | . . . . . . . . Uniques/NPCs Destroyed . | . . . . . . . . Combat | -11 -10 -9 -9 -8 -7 -6 -6 -------- Run | Scr Mat Mat Min Mat Fac Fac Low Damage Taken 1975 | . . 139 36 99 392 187 1122 Core 1226 | . . 139 36 99 100 78 774 Absorbed by Shields . | . . . . . . . . Core Remaining (%) 84 | 100 100 . 56 82 85 . . Volleys Fired 8 | . . . . . 2 . 6 Largest 1 | . . . . . 1 . 1 Hottest 68 | . . . . . 68 . 28 Shots Fired 8 | . . . . . 2 . 6 Gun 6 | . . . . . . . 6 Cannon 2 | . . . . . 2 . . Launcher . | . . . . . . . . Special . | . . . . . . . . Kinetic 6 | . . . . . . . 6 Thermal 2 | . . . . . 2 . . Explosive . | . . . . . . . . Electromagnetic . | . . . . . . . . Robot Hit Streak 5 | . . . . . 1 . 5 Robot Miss Streak 7 | . . . . . 1 . 7 Penetration Max . | . . . . . . . . Secondary Targets . | . . . . . . . . Shots Hit Robots 6 | . . . . . 1 . 5 Core Hits 8 | . . 2 . . . . 6 Critical Hits . | . . . . . . . . Critical Kills . | . . . . . . . . Critical Parts Destroyed . | . . . . . . . . Melee Attacks . | . . . . . . . . Impact . | . . . . . . . . Slashing . | . . . . . . . . Piercing . | . . . . . . . . Sneak Attacks . | . . . . . . . . Combat Hostiles . | . . . . . . . . Follow-up Attacks . | . . . . . . . . Damage Inflicted 120 | . . 20 2 . 21 . 77 Guns 69 | . . . . . . . 69 Cannons 21 | . . . . . 21 . . Explosions . | . . . . . . . . Melee . | . . . . . . . . Ramming 30 | . . 20 2 . . . 8 Kinetic 69 | . . . . . . . 69 Thermal 21 | . . . . . 21 . . Explosive . | . . . . . . . . Electromagnetic . | . . . . . . . . Impact . | . . . . . . . . Slashing . | . . . . . . . . Piercing . | . . . . . . . . Highest Corruption . | . . . . . . . . Average Corruption . | . . . . . . . . Corruption Purged . | . . . . . . . . Overload Shots . | . . . . . . . . Overflow Damage . | . . . . . . . . Projectiles . | . . . . . . . . Explosions . | . . . . . . . . Melee . | . . . . . . . . Knockbacks 1 | . . 1 . . . . . Impact 1 | . . 1 . . . . . Kinetic . | . . . . . . . . Secondary . | . . . . . . . . Self-Inflicted Damage 13 | . . 9 1 . . . 3 Shots . | . . . . . . . . Rammed 11 | . . 4 1 . . . 6 Targets Rammed 11 | . . 4 1 . . . 6 Kicked . | . . . . . . . . Crushed . | . . . . . . . . Highest Temperature 28 | . . . . . 28 . . Average Temperature 15 | . . . . . 15 . . Received Heat Transfer 336 | . . 60 . . 36 81 159 Siege Activations . | . . . . . . . . Robots Corrupted . | . . . . . . . . Combat Hostiles . | . . . . . . . . Parts Fried . | . . . . . . . . Impact Corruptions . | . . . . . . . . Robots Melted . | . . . . . . . . Combat Hostiles . | . . . . . . . . Parts Melted . | . . . . . . . . Heat Transferred 37 | . . . . . 37 . . Parts Sabotaged . | . . . . . . . . Parts Stolen . | . . . . . . . . Parts Stripped . | . . . . . . . . Power Chain Reactions . | . . . . . . . . Missiles Intercepted . | . . . . . . . . Alert | -11 -10 -9 -9 -8 -7 -6 -6 ------- Run | Scr Mat Mat Min Mat Fac Fac Low Peak Influence 105 | . . 60 23 49 100 105 . Initial 39 | . . . 23 4 21 39 . Average 35 | . . 10 18 16 37 47 . Maximum Alert Level . | . . . . . . . . Low Security (%) 100 | 100 100 100 100 100 100 100 . Level 1 . | . . . . . . . . Level 2 . | . . . . . . . . Level 3 . | . . . . . . . . Level 4 . | . . . . . . . . Level 5 . | . . . . . . . . High Security . | . . . . . . . . Max Security . | . . . . . . . . Squads Dispatched 5 | . . 2 . . 1 2 . Investigation . | . . . . . . . . Extermination 1 | . . . . . . 1 . Reinforcement 4 | . . 2 . . 1 1 . Assault . | . . . . . . . . Garrison . | . . . . . . . . Intercept . | . . . . . . . . Construction Impeded . | . . . . . . . . Haulers Reinforced . | . . . . . . . . Stealth | -11 -10 -9 -9 -8 -7 -6 -6 --------- Run | Scr Mat Mat Min Mat Fac Fac Low Distress Signals 3 | . . 1 . 1 . 1 . Communications Jammed . | . . . . . . . . Distress Signals . | . . . . . . . . Times Spotted 55 | . . 12 10 3 10 10 10 Peak Tracking Total 18 | . . 18 10 8 8 6 8 Tactical Retreats 8 | . . 1 2 1 1 2 1 Traps | -11 -10 -9 -9 -8 -7 -6 -6 ------- Run | Scr Mat Mat Min Mat Fac Fac Low Traps Triggered 2 | . . . . . 1 1 . Indirectly . | . . . . . . . . Trap Hack Attempts . | . . . . . . . . Triggered . | . . . . . . . . Disarmed . | . . . . . . . . Reprogrammed . | . . . . . . . . Reused . | . . . . . . . . Traps Extracted . | . . . . . . . . Installed . | . . . . . . . . Triggered . | . . . . . . . . Machines | -11 -10 -9 -9 -8 -7 -6 -6 ---------- Run | Scr Mat Mat Min Mat Fac Fac Low Machines Disabled . | . . . . . . . . Max in Single Turn . | . . . . . . . . Machines Sabotaged . | . . . . . . . . Garrisons Compromised . | . . . . . . . . Overloaded Fab Kills . | . . . . . . . . Fab Network Shutdowns . | . . . . . . . . Hacking | -11 -10 -9 -9 -8 -7 -6 -6 --------- Run | Scr Mat Mat Min Mat Fac Fac Low Machines Accessed 8 | . . . . 1 2 5 . Terminals 4 | . . . . 1 1 2 . Fabricators 1 | . . . . . 1 . . Repair Stations 1 | . . . . . . 1 . Recycling Units 2 | . . . . . . 2 . Scanalyzers . | . . . . . . . . Garrison Access . | . . . . . . . . Total Hacks 16 | . . . . 3 3 10 . Successful 11 | . . . . 2 2 7 . Failed 5 | . . . . 1 1 3 . Catastrophic . | . . . . . . . . Database Lockouts . | . . . . . . . . Manual . | . . . . . . . . Terminals 11 | . . . . 3 2 6 . Fabricators 1 | . . . . . 1 . . Repair Stations 1 | . . . . . . 1 . Recycling Units 3 | . . . . . . 3 . Scanalyzers . | . . . . . . . . Garrison Access . | . . . . . . . . Terminal Hacks 7 | . . . . 2 1 4 . Record 3 | . . . . 2 . 1 . Alert Level 2 | . . . . . . 2 . Unreport Threat 1 | . . . . . . 1 . Hauler Manifests 1 | . . . . . 1 . . Fabricator Hacks 1 | . . . . . 1 . . Network Status 1 | . . . . . 1 . . Repair Station Hacks . | . . . . . . . . Recycling Unit Hacks 3 | . . . . . . 3 . Report Inventory 2 | . . . . . . 2 . Retrieve Components 1 | . . . . . . 1 . Scanalyzer . | . . . . . . . . Garrison Access Hacks . | . . . . . . . . Unauthorized Hacks . | . . . . . . . . Terminals . | . . . . . . . . Fabricators . | . . . . . . . . Repair Stations . | . . . . . . . . Recycling Units . | . . . . . . . . Scanalyzers . | . . . . . . . . Garrison Access . | . . . . . . . . Data Cores Recovered . | . . . . . . . . Used . | . . . . . . . . Hacking Detections 6 | . . . . 1 1 4 . Full Trace Events 1 | . . . . 1 . . . Feedback Events . | . . . . . . . . Feedback Blocked . | . . . . . . . . Robot Schematics Acquired . | . . . . . . . . Robots Built . | . . . . . . . . Matter . | . . . . . . . . Time . | . . . . . . . . Total Robot Build Rating . | . . . . . . . . Part Schematics Acquired . | . . . . . . . . Parts Built . | . . . . . . . . Matter . | . . . . . . . . Time . | . . . . . . . . Total Part Build Rating . | . . . . . . . . Parts Repaired . | . . . . . . . . Time . | . . . . . . . . Parts Recycled . | . . . . . . . . Recycled Matter . | . . . . . . . . Retrieved Matter . | . . . . . . . . Retrieved Components 1 | . . . . . . 1 . Parts Scanalyzed . | . . . . . . . . Part Schematics Acquired . | . . . . . . . . Parts Damaged . | . . . . . . . . Bothacking | -11 -10 -9 -9 -8 -7 -6 -6 ------------ Run | Scr Mat Mat Min Mat Fac Fac Low Used RIF Installer . | . . . . . . . . Robots Hacked . | . . . . . . . . Non-combat . | . . . . . . . . Combat . | . . . . . . . . Robot Hacks Applied . | . . . . . . . . Relay Couplers Released . | . . . . . . . . Robots Rewired . | . . . . . . . . Allies Hacked . | . . . . . . . . Hacks Repelled . | . . . . . . . . Allies | -11 -10 -9 -9 -8 -7 -6 -6 -------- Run | Scr Mat Mat Min Mat Fac Fac Low Total Allies . | . . . . . . . . Largest Group . | . . . . . . . . Highest-Rated Group . | . . . . . . . . Highest-Rated Ally . | . . . . . . . . Total Orders . | . . . . . . . . Ally Attacks . | . . . . . . . . Total Damage . | . . . . . . . . Kills . | . . . . . . . . Allies Corrupted . | . . . . . . . . Allies Melted . | . . . . . . . . Intel | -11 -10 -9 -9 -8 -7 -6 -6 ------- Run | Scr Mat Mat Min Mat Fac Fac Low Robot Analysis Total . | . . . . . . . . Derelict Logs Recovered 1 | . . . 1 . . . . Drone Launches . | . . . . . . . . Drone Recoveries . | . . . . . . . . Exploration | -11 -10 -9 -9 -8 -7 -6 -6 ------------- Run | Scr Mat Mat Min Mat Fac Fac Low Turns Passed 901 | 9 37 68 52 52 171 424 88 Spaces Moved 1744 | 18 65 128 99 96 432 771 135 Core 524 | 18 65 128 99 96 16 . 102 Treads . | . . . . . . . . Legs . | . . . . . . . . Wheels . | . . . . . . . . Hover 590 | . . . . . . 557 33 Flight 630 | . . . . . 416 214 . Fastest Speed 31 | 50 50 50 50 50 31 40 50 Average Speed 45 | 50 50 50 50 50 31 50 51 Slowest Speed 117 | 50 50 50 50 50 117 60 56 Overloaded Moves . | . . . . . . . . Propulsion Burnouts . | . . . . . . . . Robots Hopped . | . . . . . . . . Cave-ins Triggered . | . . . . . . . . Exploration Rate (%) 19 | 3 17 22 33 14 15 25 23 Regions Visited 7 Branch Regions 2 Pre-discovered Areas . | . . . . . . . . Known Exits Taken . | . . . . . . . . Unknown Exits Taken 7 | 1 1 1 1 1 1 1 . Scrap Searched 1 | . . . 1 . . . . Spaces Dug . | . . . . . . . . Terrain Destroyed . | . . . . . . . . Melee . | . . . . . . . . Projectile . | . . . . . . . . AOE . | . . . . . . . . Terrain Rammed . | . . . . . . . . Walls Destroyed . | . . . . . . . . Machines Disabled . | . . . . . . . . Actions | -11 -10 -9 -9 -8 -7 -6 -6 --------- Run | Scr Mat Mat Min Mat Fac Fac Low Total 1830 | 17 68 131 100 99 462 806 147 Wait 19 | . . . . 4 13 2 . Move 1737 | 17 64 127 98 95 431 770 135 Hop . | . . . . . . . . Pick Up 16 | . 4 . . . 7 5 . Fast Attach 5 | . . . 1 . 1 3 . Attach 11 | . . . . . 8 3 . Detach . | . . . . . . . . Swap . | . . . . . . . . Drop 5 | . . . . . . 5 . Fire 8 | . . . . . 2 . 6 Melee . | . . . . . . . . Ram 11 | . . 4 1 . . . 6 Kick . | . . . . . . . . Crush . | . . . . . . . . Escape Stasis 18 | . . . . . . 18 . Rewire . | . . . . . . . . Trap . | . . . . . . . . Miscellaneous . | . . . . . . . . Route ------- -11/Scrapyard -10/Materials -9/Materials -9/Mines -8/Materials -7/Factory -6/Factory -6/Lower Caves History --------- Turn | Location | Event 3 | -11/Scrapyard | Discovered new exit (range 15) 10 | -11/Scrapyard | Entered Materials 40 | -10/Materials | Discovered new exit (range 15) 47 | -10/Materials | Entered another Materials area 47 | -9/Materials | Evolved 2 slots: Power x1, Propulsion x1 111 | -9/Materials | Discovered new exit (range 9) 115 | -9/Materials | Entered Mines 116 | -9/Mines | Assembled infested the area 142 | -9/Mines | Found a damaged Exp. Sensor Array with a note attached 143 | -9/Mines | Found Prototype Device 143 | -9/Mines | Identified Exp. Sensor Array 160 | -9/Mines | Discovered new exit (range 15) 167 | -9/Mines | Entered Materials 167 | -8/Materials | Evolved 2 slots: Power x1, Propulsion x1 212 | -8/Materials | Discovered new exit (range 16) 219 | -8/Materials | Entered Factory 219 | -7/Factory | Evolved 2 slots: Power x1, Propulsion x1 381 | -7/Factory | Discovered new exit (range 15) 390 | -7/Factory | Entered another Factory area 390 | -6/Factory | Evolved 2 slots: Power x1, Propulsion x1 421 | -6/Factory | Lost 3 parts (2n1w) 674 | -6/Factory | Build established: Mutant 806 | -6/Factory | Discovered new exit (range 14) 814 | -6/Factory | Entered Lower Caves 858 | -6/Lower Caves | Core integrity fell below 50% 880 | -6/Lower Caves | Lost 7 parts (1p3n1u2w) 892 | -6/Lower Caves | Core integrity fell below 20% 900 | -6/Lower Caves | Attracted the attention of an 0b10 checkpoint 902 | -6/Lower Caves | Destroyed by Y-54 Guardian with Gatling Laser Last Messages --------------- 00815_ Gravmag Array destroyed. 00816_ Shock Rifle destroyed. 00819_ C-30 ARC bursts open, deploying its payload. 00819_ S-27 Virus unfolds itself. 00837_ Imp. Gravmag System destroyed. 00837_ S-27 Virus destroyed. 00842_ Lgt. Nuclear Core fries itself beyond repair. 00845_ Slammed into S-27 Virus. 00846_ Acquired 21 matter. 00846_ Flak Gun destroyed. 00846_ Nuclear Core destroyed. 00846_ Slammed into S-27 Virus. 00846_ Terrain Scan Processor permanently disabled. 00846_ Destabilizing: Short circuit. 00847_ Slammed into S-27 Virus. 00848_ Gravmag Array destroyed. 00848_ Slammed into G-67 Veteran. 00849_ Adv. Targeting Computer destroyed. 00850_ Slammed into G-67 Veteran. 00900_ Y-54 Guardian: "INTERCEPTING UNREGISTERED DERELICT." Map ----- +----------------------------------------------------+ | ???????????????????????????????????????# #??# | | ???????????????????????????????????????# ##?## | | ???????????????????????????????????????## #??## | | ????????????????????????????????????????## ##### | | ????????????????????????????????????###?## ## | | ????????????????????????????????????# ## | | ????????????????????????????????????# ## # | | ????????????????????????????????????## ### # | | ?????????????????????????????????????## ##?# # | | ??????????????????????????????????????######### # | | ???????????????????????????????????????????## | | ????????????????????????######???# ??????# | | ??????????????????###???# ##?# ???????## | | ??????????????????# ?? ## ##???????### | | ??????????????????# ??# ####?????## | | ?????????????????## #?# g ##?#### | | ?????????????????# ## #?# | | ?????????????????# Y #?# | | ?????????????????# ### | | ?????????????????# ## | | ????????????# ????? #### | | ???????????# #????# s #??# "# | | ???????????# #### #????#"%# | | ??????????? #?????### " | | ??????????? ###?####?# | | ??????????? ## @ ##???# #### | | ????????????? #?????# ## #????# #?## | | ??????????????????????# #### ##???# #??# | | ????????????????????? ##??## ##??# #### | | ????????????????????# #?????# #### | | ????????????????????# ??????## | | ????????????????????# ???????# | | ????????????????????## ????????## ##### ######## | | ?????????????????????##?????????####???####??????? | | ?????????????????????????????????????????????????? | | ?????????????????????????????????????????????????? | | ?????????????????????????????????????????????????? | | ?????????????????????????????????????????????????? | | ?????????????????????????????????????????????????? | | ?????????????????????????????????????????????????? | | ?????????????????????????????????????????????????? | | ?????????????????????????????????????????????????? | | ?????????????????????????????????????????????????? | | ?????????????????????????????????????????????????? | | ?????????????????????????????????????????????????? | | ?????????????????????????????????????????????????? | | ?????????????????????????????????????????????????? | | ?????????????????????????????????????????????????? | | ?????????????????????????????????????????????????? | | | +----------------------------------------------------+ Best States ------------- Heat Dissipation 37 Energy Generation 18 Energy Capacity 310 Matter Stores 217 Matter Capacity 300 Sight Range 16 Terrain Scan Density 10 Evasion (%) 63 Targeting Accuracy 8 Item Schematics ----------------- None Robot Schematics ------------------ None Fabricated ------------ Nothing Alien Tech Used ----------------- None Achievements -------------- Everything Is Under Control Shopping List Challenges ------------ None Game ------ Seed FactorySalvageDoublenader Manual? 0 Play Time 00:15:05 Cumulative 9.7 hours Start 2021.10.28 @ 18:13:57 End 2021.10.28 @ 18:28:28 Sessions 1 Manual Loads 0 Difficulty Rogue Special Mode None Game No. 23 Rogue 23 Adventurer 0 Explorer 0 Win Type - Total 0 Types 0/0/0/0/0/0/0/0/0 Lore% 15 Gallery% 17 Achievement% 8 Wizard Run 0 Options --------- ASCII 0 Keyboard 0 Movement Numpad Keybinds 0 Fullscreen 1 Font 24/Smallcaps Map View 76x50 Tactical HUD 1 Map Filters NONE Filters NONE Steam 1 RUN: 354d892c-0095-47bf-a44e-d1bb329e5d54